[Event "*** Titled Tuesday Blitz"]
[Site "Chess.com"]
[Date "2021.03.30"]
[Round "1"]
[White "horripile"]
[Black "poneis_malditos"]
[Result "1-0"]
[WhiteElo "2598"]
[BlackElo "2301"]
[TimeControl "180+1"]
[EndTime "10:05:33 PDT"]
[Termination "horripile won by resignation"]

1. e4 {[%clk 0:03:00.9]} 1... c5 {[%clk 0:02:59.4]} 2. Nf3 {[%clk 0:03:00.8]}
2... e6 {[%clk 0:02:59.2]} 3. g3 {[%clk 0:03:00.6]} 3... Nc6 {[%clk 0:02:56.2]}
4. Bg2 {[%clk 0:03:00.4]} 4... Nge7 {[%clk 0:02:56.8]} 5. O-O {[%clk 0:02:59.8]}
5... d5 {[%clk 0:02:56.3]} 6. exd5 {[%clk 0:02:58.6]} 6... Nxd5 {[%clk
0:02:56.3]} 7. d4 {[%clk 0:02:57.7]} 7... Be7 {[%clk 0:02:48.7]} 8. a3 {[%clk
0:02:43.9]} 8... O-O {[%clk 0:02:46.4]} 9. c4 {[%clk 0:02:42]} 9... Nf6 {[%clk
0:02:46.4]} 10. dxc5 {[%clk 0:02:40.5]} 10... Bxc5 {[%clk 0:02:45.8]} 11. b4
{[%clk 0:02:40.4]} 11... Be7 {[%clk 0:02:37.3]} 12. Bb2 {[%clk 0:02:35.3]} 12...
Qc7 {[%clk 0:02:23.9]} 13. Qe2 {[%clk 0:02:29.8]} 13... a5 {[%clk 0:02:06.8]}
14. b5 {[%clk 0:02:28.9]} 14... Nb8 {[%clk 0:02:06.4]} 15. Nc3 {[%clk
0:02:25.5]} 15... Nbd7 {[%clk 0:02:04]} 16. Na4 {[%clk 0:02:25.9]} 16... b6
{[%clk 0:01:36.2]} 17. Ne5 {[%clk 0:02:15.2]} 17... Bb7 {[%clk 0:01:36.2]} 18.
Nc6 {[%clk 0:02:15.2]} 18... Bd6 {[%clk 0:01:20.6]} 19. Rfd1 {[%clk 0:02:11.1]}
19... Rac8 {[%clk 0:00:52.7]} 20. Bd4 {[%clk 0:01:59.1]} 20... Bxc6 {[%clk
0:00:41.5]} 21. bxc6 {[%clk 0:01:53.6]} 21... Nc5 {[%clk 0:00:37.8]} 22. Bxc5
{[%clk 0:01:50.7]} 22... Bxc5 {[%clk 0:00:38.7]} 23. Nxc5 {[%clk 0:01:49.9]}
23... bxc5 {[%clk 0:00:39.6]} 24. Rab1 {[%clk 0:01:50.4]} 24... Rb8 {[%clk
0:00:32.3]} 25. Rb5 {[%clk 0:01:43.9]} 25... Rxb5 {[%clk 0:00:20]} 26. cxb5
{[%clk 0:01:39.8]} 26... Qb6 {[%clk 0:00:20.9]} 27. a4 {[%clk 0:01:38.2]} 27...
Ne8 {[%clk 0:00:20.3]} 28. Qe3 {[%clk 0:01:34.9]} 28... Nd6 {[%clk 0:00:18.2]}
29. Rc1 {[%clk 0:01:34.9]} 29... Nf5 {[%clk 0:00:13.1]} 30. Qxc5 {[%clk
0:01:34]} 30... Qc7 {[%clk 0:00:13.1]} 31. b6 {[%clk 0:01:34.1]} 1-0

[Event "*** Titled Tuesday Blitz"]
[Site "Chess.com"]
[Date "2021.03.30"]
[Round "1"]
[White "tvjosue"]
[Black "Olga_Zhuravleva"]
[Result "0-1"]
[WhiteElo "2567"]
[BlackElo "2303"]
[TimeControl "180+1"]
[EndTime "10:05:33 PDT"]
[Termination "Olga_Zhuravleva won by checkmate"]

1. d4 {[%clk 0:02:57.5]} 1... g6 {[%clk 0:02:56.5]} 2. c4 {[%clk 0:02:56.8]}
2... Bg7 {[%clk 0:02:56.2]} 3. Nc3 {[%clk 0:02:56.8]} 3... d6 {[%clk 0:02:56.7]}
4. e4 {[%clk 0:02:56]} 4... Nc6 {[%clk 0:02:57.1]} 5. Be3 {[%clk 0:02:55]} 5...
e5 {[%clk 0:02:57.1]} 6. d5 {[%clk 0:02:54.1]} 6... Nce7 {[%clk 0:02:57.1]} 7.
f3 {[%clk 0:02:50.9]} 7... f5 {[%clk 0:02:53.4]} 8. Bd3 {[%clk 0:02:50.4]} 8...
Nf6 {[%clk 0:02:53.8]} 9. Nge2 {[%clk 0:02:48.7]} 9... O-O {[%clk 0:02:53.8]}
10. Qd2 {[%clk 0:02:48.1]} 10... a6 {[%clk 0:02:51.3]} 11. Rc1 {[%clk
0:02:47.3]} 11... Kh8 {[%clk 0:02:48.9]} 12. h3 {[%clk 0:02:46.7]} 12... f4
{[%clk 0:02:46.4]} 13. Bf2 {[%clk 0:02:46.2]} 13... Nh5 {[%clk 0:02:42.5]} 14.
c5 {[%clk 0:02:37.2]} 14... Bd7 {[%clk 0:02:36.4]} 15. cxd6 {[%clk 0:02:35.5]}
15... cxd6 {[%clk 0:02:35.9]} 16. O-O {[%clk 0:02:35.6]} 16... g5 {[%clk
0:02:30.1]} 17. b3 {[%clk 0:02:28.3]} 17... Ng6 {[%clk 0:02:30.3]} 18. Na4
{[%clk 0:02:28.1]} 18... Bxa4 {[%clk 0:02:00.1]} 19. bxa4 {[%clk 0:02:27.8]}
19... Qd7 {[%clk 0:01:49.5]} 20. Qb4 {[%clk 0:02:27.1]} 20... Bf6 {[%clk
0:01:39.9]} 21. a5 {[%clk 0:02:25.1]} 21... Bd8 {[%clk 0:01:36.8]} 22. Nc3
{[%clk 0:02:24.8]} 22... Ng3 {[%clk 0:01:31.5]} 23. Rfe1 {[%clk 0:02:20.7]}
23... Nh4 {[%clk 0:01:29.2]} 24. Kh2 {[%clk 0:02:09.9]} 24... h5 {[%clk
0:01:13.8]} 25. Ne2 {[%clk 0:02:08.1]} 25... g4 {[%clk 0:01:04.5]} 26. Nxg3
{[%clk 0:01:38.6]} 26... fxg3+ {[%clk 0:01:03.5]} 27. Bxg3 {[%clk 0:01:39.5]}
27... gxf3 {[%clk 0:01:02.1]} 28. Bxh4 {[%clk 0:01:39.4]} 28... Bxh4 {[%clk
0:01:00.8]} 29. g3 {[%clk 0:01:38.9]} 29... Bxg3+ {[%clk 0:00:53.4]} 30. Kxg3
{[%clk 0:01:31.3]} 30... Rg8+ {[%clk 0:00:39.3]} 31. Kxf3 {[%clk 0:01:30]} 31...
Qxh3+ {[%clk 0:00:38.6]} 32. Kf2 {[%clk 0:01:16.9]} 32... Rg2+ {[%clk
0:00:38.1]} 33. Kf1 {[%clk 0:01:15.6]} 33... Qh1# {[%clk 0:00:38.1]} 0-1

[Event "*** Titled Tuesday Blitz"]
[Site "Chess.com"]
[Date "2021.03.30"]
[Round "1"]
[White "aljado"]
[Black "LileKoridze"]
[Result "0-1"]
[WhiteElo "2096"]
[BlackElo "2504"]
[TimeControl "180+1"]
[EndTime "10:05:35 PDT"]
[Termination "LileKoridze won by resignation"]

1. e4 {[%clk 0:02:59.8]} 1... c5 {[%clk 0:03:00.1]} 2. Nf3 {[%clk 0:02:57.9]}
2... d6 {[%clk 0:03:00.5]} 3. c3 {[%clk 0:02:56.9]} 3... Nf6 {[%clk 0:02:59.1]}
4. Bc4 {[%clk 0:02:56.4]} 4... e6 {[%clk 0:02:57.2]} 5. Qe2 {[%clk 0:02:55.5]}
5... Be7 {[%clk 0:02:57.5]} 6. O-O {[%clk 0:02:54]} 6... O-O {[%clk 0:02:57.8]}
7. d4 {[%clk 0:02:52.9]} 7... cxd4 {[%clk 0:02:57.8]} 8. cxd4 {[%clk 0:02:51.5]}
8... d5 {[%clk 0:02:49.6]} 9. exd5 {[%clk 0:02:49.6]} 9... Nxd5 {[%clk
0:02:46.5]} 10. Nc3 {[%clk 0:02:46.4]} 10... Nc6 {[%clk 0:02:44.7]} 11. a3
{[%clk 0:02:33.9]} 11... Bf6 {[%clk 0:02:44.4]} 12. Rd1 {[%clk 0:02:30.6]} 12...
a6 {[%clk 0:02:41.8]} 13. Be3 {[%clk 0:02:25.1]} 13... b5 {[%clk 0:02:40.3]} 14.
Bd3 {[%clk 0:02:20.1]} 14... Bb7 {[%clk 0:02:38]} 15. Nxd5 {[%clk 0:02:19.3]}
15... Qxd5 {[%clk 0:02:36.4]} 16. Rac1 {[%clk 0:02:15.5]} 16... Kh8 {[%clk
0:02:31.2]} 17. Rc5 {[%clk 0:02:13.6]} 17... Qd7 {[%clk 0:02:29.4]} 18. Ne5
{[%clk 0:01:54.7]} 18... Qd6 {[%clk 0:02:08]} 19. Qh5 {[%clk 0:01:34.5]} 19...
g6 {[%clk 0:02:06.3]} 20. Qh3 {[%clk 0:01:31.5]} 20... Nxe5 {[%clk 0:02:02]} 21.
dxe5 {[%clk 0:01:29.8]} 21... Bxe5 {[%clk 0:02:00.3]} 22. Rxe5 {[%clk
0:00:58.6]} 22... Qxe5 {[%clk 0:01:57.8]} 23. Bxg6 {[%clk 0:00:57.3]} 23... Qg7
{[%clk 0:01:53.2]} 24. Bb1 {[%clk 0:00:48.6]} 24... Rfd8 {[%clk 0:01:48.9]} 25.
Re1 {[%clk 0:00:45.9]} 25... f5 {[%clk 0:01:32.4]} 26. Bh6 {[%clk 0:00:42.7]}
26... Qg6 {[%clk 0:01:24.8]} 27. Qc3+ {[%clk 0:00:37.3]} 27... Kg8 {[%clk
0:01:25]} 28. g3 {[%clk 0:00:29.8]} 28... Qxh6 {[%clk 0:01:22.6]} 29. Qc7 {[%clk
0:00:28.4]} 29... Qg7 {[%clk 0:01:21.5]} 30. Qe5 {[%clk 0:00:26.6]} 30... Qxe5
{[%clk 0:01:21.1]} 0-1

[Event "*** Titled Tuesday Blitz"]
[Site "Chess.com"]
[Date "2021.03.30"]
[Round "1"]
[White "AniJak"]
[Black "NicoChasin"]
[Result "0-1"]
[WhiteElo "2316"]
[BlackElo "2615"]
[TimeControl "180+1"]
[EndTime "10:05:37 PDT"]
[Termination "NicoChasin won by resignation"]

1. e4 {[%clk 0:03:00.9]} 1... c5 {[%clk 0:02:59.3]} 2. Nf3 {[%clk 0:02:58.5]}
2... e6 {[%clk 0:02:59.2]} 3. g3 {[%clk 0:02:56.8]} 3... Nc6 {[%clk 0:02:59.2]}
4. Bg2 {[%clk 0:02:56.7]} 4... Nf6 {[%clk 0:02:59.5]} 5. Nc3 {[%clk 0:02:54.4]}
5... d5 {[%clk 0:02:59.1]} 6. exd5 {[%clk 0:02:50.8]} 6... exd5 {[%clk
0:02:56.4]} 7. d4 {[%clk 0:02:50.7]} 7... Bg4 {[%clk 0:02:56.2]} 8. O-O {[%clk
0:02:32.8]} 8... cxd4 {[%clk 0:02:55.6]} 9. Nb5 {[%clk 0:02:17.9]} 9... Be7
{[%clk 0:02:35.9]} 10. Nbxd4 {[%clk 0:02:16.1]} 10... O-O {[%clk 0:02:34.3]} 11.
c3 {[%clk 0:02:14.2]} 11... Ne4 {[%clk 0:02:32.6]} 12. h3 {[%clk 0:02:10.1]}
12... Bh5 {[%clk 0:02:31.4]} 13. g4 {[%clk 0:02:06.7]} 13... Bg6 {[%clk
0:02:29.3]} 14. Bf4 {[%clk 0:02:07.2]} 14... Bc5 {[%clk 0:02:25.4]} 15. Nxc6
{[%clk 0:01:56.1]} 15... bxc6 {[%clk 0:02:24.4]} 16. Ne5 {[%clk 0:01:56.6]}
16... Qf6 {[%clk 0:02:20.1]} 17. Nd3 {[%clk 0:01:06.7]} 17... Bb6 {[%clk
0:02:13]} 18. a4 {[%clk 0:01:05]} 18... Nxf2 {[%clk 0:02:05.7]} 19. Rxf2 {[%clk
0:01:00]} 19... Bxd3 {[%clk 0:01:55]} 20. Bg3 {[%clk 0:00:43.3]} 20... Ba6
{[%clk 0:01:49.1]} 21. a5 {[%clk 0:00:40.6]} 21... Bxf2+ {[%clk 0:01:48.5]} 22.
Bxf2 {[%clk 0:00:41.5]} 22... Rfe8 {[%clk 0:01:49.2]} 23. Bd4 {[%clk 0:00:41.3]}
23... Qd6 {[%clk 0:01:46.4]} 24. b4 {[%clk 0:00:40]} 24... Qg3 {[%clk
0:01:44.8]} 25. Qf3 {[%clk 0:00:38.6]} 25... Qxf3 {[%clk 0:01:44]} 26. Bxf3
{[%clk 0:00:39.5]} 26... Be2 {[%clk 0:01:44.6]} 27. Bg2 {[%clk 0:00:39.1]} 27...
f6 {[%clk 0:01:44.4]} 28. Re1 {[%clk 0:00:38.2]} 28... Bc4 {[%clk 0:01:44.3]}
29. Rd1 {[%clk 0:00:38.3]} 29... Kf7 {[%clk 0:01:41.2]} 30. Bf3 {[%clk
0:00:38.4]} 30... Be2 {[%clk 0:01:39.2]} 31. Bxe2 {[%clk 0:00:38.7]} 31... Rxe2
{[%clk 0:01:39.9]} 32. c4 {[%clk 0:00:38.6]} 32... dxc4 {[%clk 0:01:38.7]} 33.
Bc5 {[%clk 0:00:38.9]} 33... c3 {[%clk 0:01:34.6]} 34. Rd7+ {[%clk 0:00:38]}
34... Kg6 {[%clk 0:01:34.6]} 35. h4 {[%clk 0:00:35.1]} 35... c2 {[%clk
0:01:32.7]} 36. h5+ {[%clk 0:00:31.5]} 36... Kh6 {[%clk 0:01:32.7]} 0-1

[Event "*** Titled Tuesday Blitz"]
[Site "Chess.com"]
[Date "2021.03.30"]
[Round "1"]
[White "albi1999"]
[Black "NoGuru"]
[Result "1-0"]
[WhiteElo "2619"]
[BlackElo "2320"]
[TimeControl "180+1"]
[EndTime "10:05:38 PDT"]
[Termination "albi1999 won by resignation"]

1. Nf3 {[%clk 0:02:58.9]} 1... d5 {[%clk 0:02:59.2]} 2. g3 {[%clk 0:02:57.4]}
2... Nf6 {[%clk 0:02:59.2]} 3. Bg2 {[%clk 0:02:57.3]} 3... e6 {[%clk 0:02:59.5]}
4. O-O {[%clk 0:02:56.9]} 4... Be7 {[%clk 0:02:59.7]} 5. c4 {[%clk 0:02:56.4]}
5... O-O {[%clk 0:02:56.1]} 6. b3 {[%clk 0:02:55.4]} 6... c5 {[%clk 0:02:53.7]}
7. cxd5 {[%clk 0:02:54]} 7... Nxd5 {[%clk 0:02:52.2]} 8. Bb2 {[%clk 0:02:54.2]}
8... Nc6 {[%clk 0:02:48.6]} 9. d4 {[%clk 0:02:51.4]} 9... cxd4 {[%clk
0:02:42.6]} 10. Nxd4 {[%clk 0:02:51.3]} 10... Bd7 {[%clk 0:02:42.7]} 11. Nd2
{[%clk 0:02:48.8]} 11... Nxd4 {[%clk 0:02:40.3]} 12. Bxd4 {[%clk 0:02:49.7]}
12... Bf6 {[%clk 0:02:32.8]} 13. Nc4 {[%clk 0:02:49.4]} 13... Bc6 {[%clk
0:02:24.3]} 14. Rc1 {[%clk 0:02:44]} 14... Rc8 {[%clk 0:02:21.3]} 15. Qd2 {[%clk
0:02:36.8]} 15... b6 {[%clk 0:02:13.5]} 16. Rfd1 {[%clk 0:02:36.3]} 16... Bxd4
{[%clk 0:02:05.1]} 17. Qxd4 {[%clk 0:02:37.2]} 17... Qf6 {[%clk 0:02:01]} 18.
Qxf6 {[%clk 0:02:27.8]} 18... Nxf6 {[%clk 0:01:53.7]} 19. Nd6 {[%clk 0:02:25.1]}
19... Bxg2 {[%clk 0:01:41.1]} 20. Nxc8 {[%clk 0:02:22.4]} 20... Bh3 {[%clk
0:01:38.8]} 21. Nxa7 {[%clk 0:02:19.8]} 21... h5 {[%clk 0:01:36]} 22. Rc8 {[%clk
0:02:19.6]} 22... Rxc8 {[%clk 0:01:34.2]} 23. Nxc8 {[%clk 0:02:20.5]} 23... b5
{[%clk 0:01:34.2]} 24. f3 {[%clk 0:02:17.3]} 24... e5 {[%clk 0:01:33.4]} 25. Nd6
{[%clk 0:02:16.8]} 25... b4 {[%clk 0:01:33.2]} 26. Rc1 {[%clk 0:02:14.1]} 26...
Nd5 {[%clk 0:01:32.8]} 27. Kf2 {[%clk 0:02:11.9]} 27... Be6 {[%clk 0:01:29.3]}
28. Rc5 {[%clk 0:02:04.9]} 28... Nc3 {[%clk 0:01:27.7]} 29. Rxc3 {[%clk
0:01:53.1]} 29... bxc3 {[%clk 0:01:26.9]} 30. Ke1 {[%clk 0:01:53]} 30... Kf8
{[%clk 0:01:10.8]} 31. Ne4 {[%clk 0:01:51.4]} 31... Ke7 {[%clk 0:00:53.2]} 32.
Nxc3 {[%clk 0:01:50.8]} 32... Kd6 {[%clk 0:00:53.3]} 33. b4 {[%clk 0:01:47.7]}
33... f5 {[%clk 0:00:51.2]} 34. Kd2 {[%clk 0:01:46.7]} 34... g5 {[%clk
0:00:48.2]} 35. e3 {[%clk 0:01:45.7]} 35... f4 {[%clk 0:00:44.6]} 36. exf4
{[%clk 0:01:44.9]} 36... exf4 {[%clk 0:00:44.8]} 37. gxf4 {[%clk 0:01:44.9]}
37... gxf4 {[%clk 0:00:44.9]} 38. Kd3 {[%clk 0:01:44]} 38... Ke5 {[%clk
0:00:40.9]} 39. a4 {[%clk 0:01:41]} 39... Bc8 {[%clk 0:00:40.7]} 40. a5 {[%clk
0:01:38.1]} 40... Bb7 {[%clk 0:00:40.6]} 41. Ne4 {[%clk 0:01:32.4]} 1-0

[Event "*** Titled Tuesday Blitz"]
[Site "Chess.com"]
[Date "2021.03.30"]
[Round "1"]
[White "tandaleo"]
[Black "sorrm8thatscheckm8"]
[Result "0-1"]
[WhiteElo "2335"]
[BlackElo "2628"]
[TimeControl "180+1"]
[EndTime "10:05:39 PDT"]
[Termination "sorrm8thatscheckm8 won by resignation"]

1. Nf3 {[%clk 0:02:59.7]} 1... Nf6 {[%clk 0:02:59.8]} 2. g3 {[%clk 0:03:00.3]}
2... g6 {[%clk 0:03:00.5]} 3. b4 {[%clk 0:02:59.1]} 3... Bg7 {[%clk 0:03:01.4]}
4. Bb2 {[%clk 0:02:59.1]} 4... O-O {[%clk 0:03:02.3]} 5. Bg2 {[%clk 0:02:59.4]}
5... d5 {[%clk 0:03:02.2]} 6. O-O {[%clk 0:02:59.6]} 6... a5 {[%clk 0:03:01.6]}
7. b5 {[%clk 0:02:59.2]} 7... c6 {[%clk 0:03:00.9]} 8. bxc6 {[%clk 0:02:57.9]}
8... bxc6 {[%clk 0:03:00.9]} 9. d3 {[%clk 0:02:54.1]} 9... Nbd7 {[%clk
0:02:58.2]} 10. Nbd2 {[%clk 0:02:51.5]} 10... Rb8 {[%clk 0:02:56.9]} 11. Ba3
{[%clk 0:02:50.4]} 11... Ne8 {[%clk 0:02:52.6]} 12. Rb1 {[%clk 0:02:49.3]} 12...
Nd6 {[%clk 0:02:49.6]} 13. c4 {[%clk 0:02:31.7]} 13... Ba6 {[%clk 0:02:43]} 14.
Bxd6 {[%clk 0:02:04.1]} 14... exd6 {[%clk 0:02:34.4]} 15. Qa4 {[%clk 0:02:00]}
15... Qc7 {[%clk 0:02:22.7]} 16. cxd5 {[%clk 0:01:48.4]} 16... cxd5 {[%clk
0:02:21.6]} 17. Rbc1 {[%clk 0:01:33.9]} 17... Nc5 {[%clk 0:02:20.6]} 18. Qh4
{[%clk 0:01:19.6]} 18... Qd8 {[%clk 0:02:11]} 19. Rc2 {[%clk 0:00:49]} 19... Bf6
{[%clk 0:02:01.5]} 20. Qf4 {[%clk 0:00:37.6]} 20... Re8 {[%clk 0:01:59]} 21. Nb3
{[%clk 0:00:25.6]} 21... Nxb3 {[%clk 0:01:55.9]} 22. axb3 {[%clk 0:00:25.8]}
22... Rb4 {[%clk 0:01:55.6]} 23. Qd2 {[%clk 0:00:19.5]} 23... Rxb3 {[%clk
0:01:53.9]} 24. Rfc1 {[%clk 0:00:17.3]} 24... a4 {[%clk 0:01:49.5]} 25. Rc6
{[%clk 0:00:14.5]} 25... Bb7 {[%clk 0:01:47]} 26. Rc7 {[%clk 0:00:14.5]} 26...
a3 {[%clk 0:01:42.8]} 27. Ne1 {[%clk 0:00:14]} 27... Rb2 {[%clk 0:01:39.6]} 28.
Qa5 {[%clk 0:00:13.5]} 28... Rbxe2 {[%clk 0:01:26.5]} 29. Rxb7 {[%clk
0:00:11.3]} 29... Qxa5 {[%clk 0:01:25.3]} 0-1

[Event "*** Titled Tuesday Blitz"]
[Site "Chess.com"]
[Date "2021.03.30"]
[Round "1"]
[White "SilviusTiberius"]
[Black "Michaelson_11"]
[Result "1-0"]
[WhiteElo "2558"]
[BlackElo "2258"]
[TimeControl "180+1"]
[EndTime "10:05:47 PDT"]
[Termination "SilviusTiberius won on time"]

1. e4 {[%clk 0:03:00.9]} 1... c5 {[%clk 0:02:49.8]} 2. Nf3 {[%clk 0:03:01.2]}
2... Nc6 {[%clk 0:02:48.8]} 3. d4 {[%clk 0:03:01.6]} 3... cxd4 {[%clk
0:02:49.7]} 4. Nxd4 {[%clk 0:03:02.2]} 4... g6 {[%clk 0:02:48.3]} 5. c4 {[%clk
0:03:01.8]} 5... Nf6 {[%clk 0:02:46]} 6. Nc3 {[%clk 0:03:01.3]} 6... d6 {[%clk
0:02:43.8]} 7. f3 {[%clk 0:03:01.1]} 7... Nxd4 {[%clk 0:02:43.6]} 8. Qxd4 {[%clk
0:03:00.7]} 8... Bg7 {[%clk 0:02:44.1]} 9. Be3 {[%clk 0:03:01]} 9... O-O {[%clk
0:02:41.8]} 10. Qd2 {[%clk 0:03:01.4]} 10... Be6 {[%clk 0:02:41.3]} 11. Be2
{[%clk 0:02:58.9]} 11... Qa5 {[%clk 0:02:35.2]} 12. Rc1 {[%clk 0:02:58.5]} 12...
Rfc8 {[%clk 0:02:30.8]} 13. b3 {[%clk 0:02:58.5]} 13... a6 {[%clk 0:02:28.7]}
14. Na4 {[%clk 0:02:58.7]} 14... Qxd2+ {[%clk 0:02:27.1]} 15. Kxd2 {[%clk
0:02:59.6]} 15... Nd7 {[%clk 0:02:27.7]} 16. g4 {[%clk 0:03:00]} 16... f5 {[%clk
0:02:16.6]} 17. gxf5 {[%clk 0:02:57]} 17... gxf5 {[%clk 0:02:17.5]} 18. Nc3
{[%clk 0:02:57]} 18... Nf6 {[%clk 0:01:46.1]} 19. Rhg1 {[%clk 0:02:55]} 19...
Kf7 {[%clk 0:01:28.4]} 20. Nd5 {[%clk 0:02:45.3]} 20... Bxd5 {[%clk 0:01:19.6]}
21. exd5 {[%clk 0:02:41.9]} 21... b5 {[%clk 0:01:01.7]} 22. Bd3 {[%clk
0:02:39.6]} 22... bxc4 {[%clk 0:01:01.2]} 23. bxc4 {[%clk 0:02:39.3]} 23... Rab8
{[%clk 0:00:46.7]} 24. Rb1 {[%clk 0:02:38.9]} 24... Ne8 {[%clk 0:00:17.1]} 25.
Bxf5 {[%clk 0:02:34.6]} 25... Rxb1 {[%clk 0:00:16.6]} 26. Rxb1 {[%clk
0:02:33.3]} 26... Rxc4 {[%clk 0:00:16.7]} 27. Be6+ {[%clk 0:02:06]} 27... Kf6
{[%clk 0:00:15.5]} 28. Kd3 {[%clk 0:02:00.1]} 28... Ra4 {[%clk 0:00:05.1]} 29.
Bd4+ {[%clk 0:02:00.1]} 29... Rxd4+ {[%clk 0:00:04]} 30. Kxd4 {[%clk 0:02:01]}
30... Kg5+ {[%clk 0:00:04.5]} 31. Ke3 {[%clk 0:01:59.5]} 31... Nc7 {[%clk
0:00:03.9]} 32. Rb7 {[%clk 0:01:53.5]} 32... Nxe6 {[%clk 0:00:03.8]} 33. dxe6
{[%clk 0:01:54.4]} 33... Kf6 {[%clk 0:00:04.2]} 34. Ra7 {[%clk 0:01:54]} 34...
Kxe6 {[%clk 0:00:03.6]} 35. Rxa6 {[%clk 0:01:54.4]} 35... Bh6+ {[%clk
0:00:03.3]} 36. Ke4 {[%clk 0:01:54.3]} 36... Bd2 {[%clk 0:00:01.9]} 37. f4
{[%clk 0:01:54]} 37... Kf6 {[%clk 0:00:01.7]} 38. f5 {[%clk 0:01:54]} 1-0

[Event "*** Titled Tuesday Blitz"]
[Site "Chess.com"]
[Date "2021.03.30"]
[Round "1"]
[White "DanilovVladimir"]
[Black "Flutaga"]
[Result "1-0"]
[WhiteElo "2494"]
[BlackElo "2011"]
[TimeControl "180+1"]
[EndTime "10:05:50 PDT"]
[Termination "DanilovVladimir won on time"]

1. d4 {[%clk 0:02:53.8]} 1... d5 {[%clk 0:02:59.7]} 2. c4 {[%clk 0:02:53.3]}
2... e6 {[%clk 0:03:00]} 3. Nc3 {[%clk 0:02:52.9]} 3... Nf6 {[%clk 0:03:00.2]}
4. Bg5 {[%clk 0:02:52.3]} 4... Nbd7 {[%clk 0:02:58.7]} 5. e3 {[%clk 0:02:51.9]}
5... Be7 {[%clk 0:02:58.8]} 6. Nf3 {[%clk 0:02:51.5]} 6... O-O {[%clk 0:02:59]}
7. Qc2 {[%clk 0:02:51.4]} 7... b6 {[%clk 0:02:59.3]} 8. cxd5 {[%clk 0:02:44.4]}
8... Nxd5 {[%clk 0:02:58.1]} 9. Nxd5 {[%clk 0:02:43.5]} 9... exd5 {[%clk
0:02:50.4]} 10. Bxe7 {[%clk 0:02:42.4]} 10... Qxe7 {[%clk 0:02:50.7]} 11. Qxc7
{[%clk 0:02:42.4]} 11... Qb4+ {[%clk 0:02:40.3]} 12. Qc3 {[%clk 0:02:42.1]}
12... Qd6 {[%clk 0:02:39.1]} 13. Bd3 {[%clk 0:02:39.3]} 13... Bb7 {[%clk
0:02:38.3]} 14. O-O {[%clk 0:02:38.5]} 14... Rac8 {[%clk 0:02:38.2]} 15. Qd2
{[%clk 0:02:38.7]} 15... Nf6 {[%clk 0:02:38.3]} 16. Rac1 {[%clk 0:02:37.7]}
16... Ne4 {[%clk 0:02:36.9]} 17. Bxe4 {[%clk 0:02:37.7]} 17... dxe4 {[%clk
0:02:37.8]} 18. Ne5 {[%clk 0:02:37.7]} 18... f6 {[%clk 0:02:38.1]} 19. Nc4
{[%clk 0:02:32.7]} 19... Qd5 {[%clk 0:02:38.3]} 20. b3 {[%clk 0:02:32.3]} 20...
Ba6 {[%clk 0:02:38.3]} 21. Qb4 {[%clk 0:02:30.5]} 21... Rc6 {[%clk 0:02:34.8]}
22. Rc3 {[%clk 0:02:28.9]} 22... Rfc8 {[%clk 0:02:32.8]} 23. Rfc1 {[%clk
0:02:28.8]} 23... Bb5 {[%clk 0:02:14.3]} 24. Nd2 {[%clk 0:02:21.1]} 24... a5
{[%clk 0:02:00.9]} 25. Rxc6 {[%clk 0:02:20.7]} 25... axb4 {[%clk 0:01:27.4]} 26.
Rxc8+ {[%clk 0:02:20]} 26... Kf7 {[%clk 0:01:28.1]} 27. R1c7+ {[%clk 0:02:14.8]}
27... Kg6 {[%clk 0:01:27.9]} 28. Nc4 {[%clk 0:02:07.7]} 28... Ba6 {[%clk
0:01:04.5]} 29. Re8 {[%clk 0:01:59]} 29... Bxc4 {[%clk 0:00:52.3]} 30. Rxc4
{[%clk 0:01:56.6]} 30... Qa5 {[%clk 0:00:47.1]} 31. Rc2 {[%clk 0:01:47.6]} 31...
Kh6 {[%clk 0:00:06.3]} 32. h3 {[%clk 0:01:44.5]} 32... Qb5 {[%clk 0:00:03.8]}
33. Rxe4 {[%clk 0:01:35.7]} 33... Qd3 {[%clk 0:00:02.2]} 34. Rh4+ {[%clk
0:01:35.2]} 1-0

[Event "*** Titled Tuesday Blitz"]
[Site "Chess.com"]
[Date "2021.03.30"]
[Round "1"]
[White "NiranjanNavalgund"]
[Black "MIJuanReyesRosa"]
[Result "1-0"]
[WhiteElo "2507"]
[BlackElo "2114"]
[TimeControl "180+1"]
[EndTime "10:05:58 PDT"]
[Termination "NiranjanNavalgund won on time"]

1. e4 {[%clk 0:03:00.9]} 1... c5 {[%clk 0:02:57.3]} 2. d4 {[%clk 0:03:00]} 2...
cxd4 {[%clk 0:02:56.5]} 3. c3 {[%clk 0:02:50.8]} 3... g6 {[%clk 0:02:54.3]} 4.
Nf3 {[%clk 0:02:47.3]} 4... Nf6 {[%clk 0:02:47.9]} 5. h4 {[%clk 0:02:48.2]} 5...
Nxe4 {[%clk 0:02:44.2]} 6. Qxd4 {[%clk 0:02:47.8]} 6... Nf6 {[%clk 0:02:43.5]}
7. h5 {[%clk 0:02:47.8]} 7... Nc6 {[%clk 0:02:43.2]} 8. Qd1 {[%clk 0:02:46.1]}
8... Nxh5 {[%clk 0:02:35.9]} 9. Rxh5 {[%clk 0:02:46.3]} 9... gxh5 {[%clk
0:02:36.1]} 10. Bc4 {[%clk 0:02:46.4]} 10... Bg7 {[%clk 0:02:18.6]} 11. Ng5
{[%clk 0:02:44.3]} 11... e6 {[%clk 0:01:38.3]} 12. Qxh5 {[%clk 0:02:39.7]} 12...
Qf6 {[%clk 0:01:22.6]} 13. Be3 {[%clk 0:02:25.3]} 13... d5 {[%clk 0:01:17.7]}
14. Bb5 {[%clk 0:02:21.9]} 14... Bd7 {[%clk 0:01:14.5]} 15. Nd2 {[%clk
0:02:21.2]} 15... h6 {[%clk 0:01:10.8]} 16. Ngf3 {[%clk 0:02:17]} 16... O-O-O
{[%clk 0:01:06.9]} 17. O-O-O {[%clk 0:02:07.8]} 17... Ne5 {[%clk 0:01:05]} 18.
Be2 {[%clk 0:01:59.1]} 18... Ng6 {[%clk 0:00:32.5]} 19. g3 {[%clk 0:01:53.4]}
19... Kb8 {[%clk 0:00:29.8]} 20. Nb3 {[%clk 0:01:46.6]} 20... Rc8 {[%clk
0:00:27.3]} 21. Nc5 {[%clk 0:01:45.4]} 21... Bc6 {[%clk 0:00:20.7]} 22. Nd4
{[%clk 0:01:42.9]} 22... Ne5 {[%clk 0:00:17.9]} 23. f4 {[%clk 0:01:38.9]} 23...
Nc4 {[%clk 0:00:15.8]} 24. Nxc6+ {[%clk 0:01:38.8]} 24... Rxc6 {[%clk
0:00:14.2]} 25. Nd7+ {[%clk 0:01:38.9]} 25... Ka8 {[%clk 0:00:12.6]} 26. Nxf6
{[%clk 0:01:36.2]} 26... Nxe3 {[%clk 0:00:12.4]} 27. Qxf7 {[%clk 0:01:35.5]}
27... Bxf6 {[%clk 0:00:03.9]} 28. Qxf6 {[%clk 0:01:35.2]} 28... Rhc8 {[%clk
0:00:01.9]} 29. Rh1 {[%clk 0:01:34.7]} 29... Nd1 {[%clk 0:00:02.8]} 30. Bxd1
{[%clk 0:01:34.2]} 1-0